{"text_format":"1","workbook":"xlsx","n_sheets":14,"sheets":["Титульный","ПП 2016","ПП 2018","ПП 2016-2018","ПМ оборудования 2016","ПМ оборудования 2018","расход ээ","расчет ээ на общепр.нужды","Хар-ка сетей","вода на собст.нужды","Реализация услуг ","План мероприятий 2016 год","План мероприятий 2017 год","План мероприятий 2018 год"],"not_rendered":{"charts":0,"images":0,"macros":0,"external_links":6,"defined_names":45,"comments":0,"pivot_tables":0},"unopened":[],"bounds":{"document_bytes":16777216,"sheet_cells":100000,"rows_first":2000,"rows_last":500,"rows_between":2000,"halvings":0,"cell_chars":16384,"cell_head_chars":4096},"cells_cut":0,"cells_raw":0,"read":"whole","date_system":"1900"}

{"sheet":"Титульный","index":0,"n_rows":64,"n_cols":10,"rows_kept":64,"cut":false,"hidden":false,"merged":[[63,0,63,4],[41,6,41,9],[39,1,39,2],[39,6,39,9],[41,1,41,2],[42,3,42,12],[24,0,24,14],[25,9,26,14],[29,1,29,13],[30,1,30,13],[33,1,33,13],[34,1,34,13]]}
[]
["Утверждаю :",null,null,null,null,null,null,null,null,"Утверждаю :"]
["Руководитель предприятия",null,null,null,null,null,null,null,null,"Комитет по тарифам и ценовой политике"]
[null,null,null,null,null,null,null,null,null,"Ленинградской области"]
[null,null,null,null,null,null,null,null,null,"(191311, Санкт-Петербург, ул.Смольного, д.3)"]
[]
["\"             \"",null,null,"2017 год",null,null,null,null,null,"приказ ЛенРТК от _______________________ № _______"]
["МП"]
[]
[]
[]
[]
[]
[]
[]
[]
[]
[]
[]
[]
[]
[]
[]
[]
["Производственная программа  в сфере водоснабжения на ____________________________________________"]
[null,null,null,null,null,null,null,null,null,"(период указывается с учетом метода регулирования, выбранного предприятием)"]
[]
[]
[]
[]
[null," (наименование организации)"]
[]
[]
[]
[null,"(адрес фактического местонахождения)"]
[]
[]
[]
[]
[null,"сфера",null,null,null,null,"холодное водоснабжение"]
[]
[null,"вид товара",null,null,null,null,"транспортировка воды"]
[]
[]
[]
[]
[]
[]
[]
[]
[]
[]
[]
[]
[]
[]
[]
[]
[]
[]
[]
[]
[]
["Приложение:  на ________________ листах."]

{"sheet":"ПП 2016","index":1,"n_rows":22,"n_cols":18,"rows_kept":22,"cut":false,"hidden":false,"merged":[[5,1,9,1],[5,0,9,0],[8,12,9,12],[8,13,8,14],[8,15,9,15],[8,16,8,17],[5,2,9,2],[5,3,5,17],[6,3,7,5],[6,6,7,8],[6,9,6,17],[7,12,7,14],[7,15,7,17],[8,10,8,11],[7,9,7,11],[8,3,9,3],[8,4,8,5],[8,6,9,6],[8,7,8,8],[8,9,9,9]]}
["Внимание! Таблица заполняется, но распечатке не подлежит. "]
[null,null,null,null,null,null,null,null,null,null,null,null,null,null,null,null,null,"Таблица 1.1.1"]
[]
["Раздел 1. Обоснование обеспечения фактического объема  транспортировки воды  за  2016 год"]
[]
["№ п/п","Показатели","Ед. изм.","Отчетный период (2016 год)"]
[null,null,null,"предусмотрено в тарифе",null,null,"всего по организации",null,null,"в том числе по ЦСВ"]
[null,null,null,null,null,null,null,null,null,"МО 1",null,null,"МО 2",null,null,"МО 3"]
[null,null,null,"Всего в год","в том числе",null,"Всего в год","в том числе",null,"Всего в год","в том числе",null,"Всего в год","в том числе",null,"Всего в год","в том числе"]
[null,null,null,null,"с 01.01.2016 по 30.06.2016","с 01.07.2016 по 31.12.2016",null,"с 01.01.2016 по 30.06.2016","с 01.07.2016 по 31.12.2016",null,"с 01.01.2016 по 30.06.2016","с 01.07.2016 по 31.12.2016",null,"с 01.01.2016 по 30.06.2016","с 01.07.2016 по 31.12.2016",null,"с 01.01.2016 по 30.06.2016","с 01.07.2016 по 31.12.2016"]
[1,2,3,4,5,6,7,8,9,10,11,12,13,14,15,16,17,18]
["1","Принято воды для передачи             (транспортировки)","тыс. м3"]
["2","Потери транспортируемой воды","тыс. м3"]
["3","Объем транспортируемой воды всего, ","тыс. м3"]
["3.1.","Объем транспортируемой воды на собственные нужды","тыс. м3"]
["3.2.","Товарная  вода (транспортировка)","тыс. м3"]
["3.2.1","Гарантирующая организация","тыс. м3"]
["3.2.2.","Иные потребители","тыс. м3"]
["4.","Расход электроэнергии – всего, в т.ч.:","тыс. кВт.ч"]
["4..1","Расход электроэнергии на технологические нужды","тыс. кВт.ч"]
["4.1.1.","Удельный расход электроэнергии на технологические нужды","кВтч/м3"]
["4.2.","Расход электроэнергии на общепроизводственные нужды","тыс. кВт.ч"]

{"sheet":"ПП 2018","index":2,"n_rows":22,"n_cols":15,"rows_kept":22,"cut":false,"hidden":false,"merged":[[8,10,8,11],[8,12,9,12],[8,13,8,14],[5,2,9,2],[5,1,9,1],[5,0,9,0],[5,3,5,14],[6,3,7,5],[6,6,6,14],[7,6,7,8],[7,9,7,11],[7,12,7,14],[8,3,9,3],[8,4,8,5],[8,6,9,6],[8,7,8,8],[8,9,9,9]]}
["Внимание! Таблица заполняется, но распечатке не подлежит. "]
[null,null,null,null,null,null,null,null,null,null,null,null,null,null,"Таблица 1.1.2"]
[]
["Раздел 1. Обоснование обеспечения прогнозируемого объема транспортировки воды в 2018 г с разбивкой по периодам "]
[]
["№ п/п","Показатели","Ед. изм.","Плановый период (2018 год)"]
[null,null,null,"всего по организации",null,null,"в том числе по ЦСВ"]
[null,null,null,null,null,null,"МО 1",null,null,"МО 2",null,null,"МО 3"]
[null,null,null,"Всего в год","в том числе",null,"Всего в год","в том числе",null,"Всего в год","в том числе",null,"Всего в год","в том числе"]
[null,null,null,null,"с 01.01.2018 по 30.06.2018","с 01.07.2018 по 31.12.2018",null,"с 01.01.2018 по 30.06.2018","с 01.07.2018 по 31.12.2018",null,"с 01.01.2018 по 30.06.2018","с 01.07.2018 по 31.12.2018",null,"с 01.01.2018 по 30.06.2018","с 01.07.2018 по 31.12.2018"]
[1,2,3,4,5,6,7,8,9,10,11,12,13,14,15]
["1","Принято воды для передачи             (транспортировки)","тыс. м3"]
["2","Потери транспортируемой воды","тыс. м3"]
["3","Объем транспортируемой воды всего, ","тыс. м3"]
["3.1.","Объем транспортируемой воды на собственные нужды","тыс. м3"]
["3.2.","Товарная  вода (транспортировка)","тыс. м3"]
["3.2.1","Гарантирующая организация","тыс. м3"]
["3.2.2.","Иные потребители","тыс. м3"]
["4.","Расход электроэнергии – всего, в т.ч.:","тыс. кВт.ч"]
["4..1","Расход электроэнергии на технологические нужды","тыс. кВт.ч"]
["4.1.1.","Удельный расход электроэнергии на технологические нужды","кВтч/м3"]
["4.2.","Расход электроэнергии на общепроизводственные нужды","тыс. кВт.ч"]

{"sheet":"ПП 2016-2018","index":3,"n_rows":30,"n_cols":11,"rows_kept":30,"cut":false,"hidden":false,"merged":[[29,1,29,4],[5,3,5,5],[5,6,5,8],[5,9,5,10],[5,0,6,0],[5,1,6,1],[5,2,6,2],[23,3,23,5],[26,3,26,5]]}
[null,null,null,null,null,null,null,null,null,null,"Приложение 1"]
[null,null,null,null,null,null,null,null,null,null,"Таблица 1.1."]
["Раздел 1. Обоснование обеспечения прогнозируемого объема транспортировки воды"]
[]
[]
["№ п/п","Показатели","Ед. изм.","Отчетный период (2016 год)",null,null,"Базовый  период (2017 год)",null,null,"Плановый период (2018 год)"]
[null,null,null,"Предусмотрено в тарифе ЛенРТК","Данные организации","Принято ЛенРТК","Предусмотрено в тарифе ЛенРТК","Данные организации","Принято ЛенРТК","Данные организации","Принято ЛенРТК"]
[1,2,3,4,5,6,7,8,9,10,11]
["1","Принято воды для передачи             (транспортировки)","тыс. м3"]
["2","Потери транспортируемой воды","тыс. м3"]
["3","Объем транспортируемой воды всего, ","тыс. м3"]
["3.1.","Объем транспортируемой воды на собственные нужды","тыс. м3"]
["3.2.","Товарная  вода (транспортировка)","тыс. м3"]
["3.2.1","Гарантирующая организация","тыс. м3"]
["3.2.2.","Иные потребители","тыс. м3"]
["4.","Расход электроэнергии – всего, в т.ч.:","тыс. кВт.ч"]
["4.1.","Расход электроэнергии на технологические нужды","тыс. кВт.ч"]
["4.1.1.","Удельный расход электроэнергии на технологические нужды","кВтч/м3"]
["4.2.","Расход электроэнергии на общепроизводственные нужды","тыс. кВт.ч"]
[]
["М.П."]
[]
[]
[null,"Должность руководителя, подпись",null,"Фамилия, имя, отчество"]
[]
[null,null,"                             "]
[null,"Должность исполнителя, подпись",null,"Фамилия, имя, отчество"]
[]
[]
[null,"контактный тел. с кодом города, контактный E-mail"]

{"sheet":"ПМ оборудования 2016","index":4,"n_rows":35,"n_cols":15,"rows_kept":35,"cut":false,"hidden":false,"merged":[[10,4,10,14],[31,6,31,8],[34,6,34,8],[7,11,8,11],[7,12,8,12],[7,13,8,13],[7,14,8,14],[16,4,16,14],[22,4,22,14],[4,3,4,14],[7,3,8,3],[7,4,8,4],[7,5,8,5],[7,6,8,6],[7,7,8,7],[7,8,7,10]]}
[null,null,null,null,null,null,null,null,null,null,null,null,null,null,"Приложение 1"]
[null,null,null,null,null,null,null,null,null,null,null,null,null,null,"Таблица 1.2."]
[]
[]
[null,null,null,"Перечень насосного оборудования по объектам водоснабжения (факт 2016 года)"]
[]
[]
[null,null,null,"№ п/п","Наименование оборудования и его местоположение","Марка насоса","Количество насосов находящихся в работе, шт","Количество насосов, находящихся в резерве, шт","Характеристика оборудования",null,null,"Количество час работы насосов году, час","КПД насосов, %","КПД электродвигателя (по паспорту), %","Расход электроэнергии на технологические нужды, т.кВт.ч"]
[null,null,null,null,null,null,null,null,"Производительность, м3/час","Напор, м","Мощность электродвигателя, кВт"]
[null,null,null,1,2,3,4,5,6,7,8,9,10,11,12]
[null,null,null,null,"Муниципальный район: МО 1"]
[null,null,null,1,"Транспортировка воды (насосные, повысительные станции)","х","х","х"]
[null,null,null,"1.1"]
[null,null,null,"1.2"]
[null,null,null,"…","…"]
[null,null,null,"0","Итого по МО","х",null,null,"х","х","х","х","х","х"]
[null,null,null,null,"Муниципальный район: МО 2"]
[null,null,null,2,"Транспортировка воды (насосные, повысительные станции)","х","х","х"]
[null,null,null,"2.1"]
[null,null,null,"2.2"]
[null,null,null,"…","…"]
[null,null,null,null,"Итого по МО","х",null,null,"х","х","х","х","х","х"]
[null,null,null,null,"ИТОГО   ПО   ОРГАНИЗАЦИИ:"]
[null,null,null,null,"Транспортировка воды ","х",null,null,"х","х","х","х","х","х"]
[]
[null,null,null,"Примечание: Данные, предусмотренные организацией в графе 12, должны быть подтверждены расчетом"]
[]
[]
[]
[null,null,null,"М.П."]
[]
[null,null,null,null,"Должность руководителя, подпись",null,"Фамилия, имя, отчество"]
[]
[null,null,null,null,null,"                             "]
[null,null,null,null,"Должность исполнителя, подпись",null,"Фамилия, имя, отчество"]

{"sheet":"ПМ оборудования 2018","index":5,"n_rows":35,"n_cols":16,"rows_kept":35,"cut":false,"hidden":false,"merged":[[4,3,4,15],[7,3,8,3],[7,4,8,4],[7,5,8,5],[7,6,8,6],[7,7,8,7],[7,8,8,8],[7,9,7,11],[7,12,8,12],[7,13,8,13],[34,6,34,9],[16,4,16,14],[22,4,22,14],[7,14,8,14],[7,15,8,15],[10,4,10,15],[31,6,31,9]]}
[null,null,null,null,null,null,null,null,null,null,null,null,null,null,null,"Приложение 1"]
[null,null,null,null,null,null,null,null,null,null,null,null,null,null,null,"Таблица 1.3."]
[]
[]
[null,null,null,"Перечень насосного оборудования по объектам водоснабжения (план 2018 года)"]
[]
[]
[null,null,null,"№ п/п","Наименование оборудования и его местоположение","Марка насоса","Количество насосов находящихся в работе, шт","Количество насосов, находящихся в резерве, шт","Объем воды в год, т.м3","Характеристика оборудования",null,null,"Количество час работы насосов году, час","КПД насосов, %","КПД электродвигателя (по паспорту), %","Расход электроэнергии на технологические нужды, т.кВт.ч"]
[null,null,null,null,null,null,null,null,null,"Производительность, м3/час","Напор, м","Мощность электродвигателя, кВт"]
[null,null,null,1,2,3,4,5,6,7,8,9,10,11,12,13]
[null,null,null,null,"Муниципальный район: МО 1"]
[null,null,null,1,"Транспортировка воды (насосные, повысительные станции)","х","х","х"]
[null,null,null,"1.1"]
[null,null,null,"1.2"]
[null,null,null,"…","…"]
[null,null,null,"0","Итого по МО","х",null,null,"х","х","х","х","х","х"]
[null,null,null,null,"Муниципальный район: МО 2"]
[null,null,null,2,"Транспортировка воды (насосные, повысительные станции)","х","х","х"]
[null,null,null,"2.1"]
[null,null,null,"2.2"]
[null,null,null,"…","…"]
[null,null,null,null,"Итого по МО","х",null,null,"х","х","х","х","х","х"]
[null,null,null,null,"ИТОГО   ПО   ОРГАНИЗАЦИИ:"]
[null,null,null,null,"Транспортировка воды ","х",null,null,"х","х","х","х","х","х"]
[]
[null,null,null,"Примечание: Данные, предусмотренные организацией в графе 13, должны быть подтверждены расчетами"]
[]
[]
[]
[null,null,null,"М.П."]
[]
[null,null,null,null,"Должность руководителя, подпись",null,"Фамилия, имя, отчество"]
[]
[null,null,null,null,null,"                             "]
[null,null,null,null,"Должность исполнителя, подпись",null,"Фамилия, имя, отчество"]

{"sheet":"расход ээ","index":6,"n_rows":25,"n_cols":10,"rows_kept":25,"cut":false,"hidden":false,"merged":[[21,4,21,5],[24,4,24,5],[3,1,3,9],[4,1,4,7],[5,1,5,7],[6,1,6,7],[7,1,8,1],[7,2,8,2],[7,3,8,3],[7,4,7,5],[7,6,7,7],[7,8,7,9]]}
[null,null,null,null,null,null,null,null,null,"Приложение 1"]
[null,null,null,null,null,null,null,null,null,"Таблица 1.4."]
[]
[null,"Расчёт электрической энергии на производство и реализацию услуг водоснабжения (транспортировка воды)"]
[]
[]
[]
[null,"№ п/п","Наименование направления расхода электрической энергии","Ед.изм.","2016 год",null,"2017 год",null,"2018 год"]
[null,null,null,null,"Предусмотрено в тарифе","Факт по данным организации","Предусмотрено в тарифе","Ожидаемое исполнение по данным организации","План организации","Принято ЛенРТК"]
[null,1,2,3,4,5,6,7,8,9]
[null,"1","Всего по организации (стр2+стр3)","тыс кВт.ч"]
[null,"2","На технологические нужды - всего, в том числе:","тыс кВт.ч"]
[null,"2.1","Транспортировка воды","тыс кВт.ч"]
[null,"3","На общепроизводственные нужды - всего, в том числе:","тыс кВт.ч"]
[null,"3.1","На электроотопление зданий и сооружений","тыс кВт.ч"]
[null,"3.2","На освещение зданий и сооружений","тыс кВт.ч"]
[null,"3.3","На работу вспомогательного оборудования","тыс кВт.ч"]
[]
[]
[]
[null,"М.П."]
[null,null,"Должность руководителя, подпись",null,"Фамилия, имя, отчество"]
[]
[null,null,null,"                             "]
[null,null,"Должность исполнителя, подпись",null,"Фамилия, имя, отчество"]

{"sheet":"расчет ээ на общепр.нужды","index":7,"n_rows":33,"n_cols":12,"rows_kept":33,"cut":false,"hidden":false,"merged":[[18,1,18,12],[29,8,29,9],[32,8,32,9]]}
[null,null,null,null,null,null,null,null,null,null,null,"Приложение 1"]
[null,null,null,null,null,null,null,null,null,null,null,"Таблица 1.5."]
[]
[]
[]
[]
[]
[null,null,null,null,null,"Расчет потребности в электрической энергии на общепроизводственные нужды "]
[]
[]
[]
[]
[]
[]
[]
[]
[]
[]
[null,"Заполняется организацией в произвольной форме с указанием  оборудования в соответствии с таблицей 1.4."]
[]
[]
[]
[]
[]
[]
[]
[]
[]
[null,null,null,null,null,"М.П."]
[null,null,null,null,null,null,"Должность руководителя, подпись",null,"Фамилия, имя, отчество"]
[]
[null,null,null,null,null,null,null,"                             "]
[null,null,null,null,null,null,"Должность исполнителя, подпись",null,"Фамилия, имя, отчество"]

{"sheet":"Хар-ка сетей","index":8,"n_rows":31,"n_cols":8,"rows_kept":31,"cut":false,"hidden":false,"merged":[[3,0,3,7],[5,0,5,7],[6,0,7,0],[6,1,7,1],[6,2,7,2],[6,3,7,3],[6,4,6,7],[24,1,24,2],[9,1,9,2],[27,3,27,5],[30,3,30,5],[22,0,22,2],[10,0,11,0],[10,1,15,1],[16,0,17,0],[16,1,21,1],[23,0,23,2]]}
[null,null,null,null,null,null,null,"Приложение 1"]
[null,null,null,null,null,null,null,"Таблица 1.6."]
[]
["Характеристика водопроводных сетей"]
[]
[]
["№ п/п","Наименование",null,"Всего","в том числе по поселениям"]
[null,null,null,null,"наименование МО1","наименование МО2","наименование МО3","наименование МО4"]
[1,2,3,4,5,6,7,8]
[1,"Водопроводные сети",null,"х","х","х","х","х"]
["1.1","Протяженность сетей","Итого, км",{"$f":"SUM(D13:D16)","v":0},{"$f":"SUM(E13:E16)","v":0},{"$f":"SUM(F13:F16)","v":0},{"$f":"SUM(G13:G16)","v":0},{"$f":"SUM(H13:H16)","v":0}]
[null,null,"в том числе:","х","х","х","х","х"]
["1.1.1",null,"диаметр от 50мм до 250мм"]
["1.1.2",null,"диаметр от 250мм до 500мм"]
["1.1.3",null,"диаметр от 500мм до 1000мм"]
["1.1.4",null,"диаметр от 1000мм"]
["1.2","Протяженность сетей, нуждающихся в замене","Итого, км",{"$f":"SUM(D19:D22)","v":0},{"$f":"SUM(E19:E22)","v":0},{"$f":"SUM(F19:F22)","v":0},{"$f":"SUM(G19:G22)","v":0},{"$f":"SUM(H19:H22)","v":0}]
[null,null,"в том числе:","х","х","х","х","х"]
["1.2.1",null,"диаметр от 50мм до 250мм"]
["1.2.2",null,"диаметр от 250мм до 500мм"]
["1.2.3",null,"диаметр от 500мм до 1000мм"]
["1.2.4",null,"диаметр от 1000мм"]
["ВСЕГО водопроводных сетей,",null,null,{"$f":"D11","v":0},{"$f":"E11","v":0},{"$f":"F11","v":0},{"$f":"G11","v":0},{"$f":"H11","v":0}]
["в том числе нуждающихся в замене",null,null,{"$f":"D17","v":0},{"$f":"E17","v":0},{"$f":"F17","v":0},{"$f":"G17","v":0},{"$f":"H17","v":0}]
[]
[]
[]
[null,"Должность руководителя, подпись",null,"Фамилия, имя, отчество"]
[]
[null,null,"                             "]
[null,"Должность исполнителя, подпись",null,"Фамилия, имя, отчество"]

{"sheet":"вода на собст.нужды","index":9,"n_rows":25,"n_cols":8,"rows_kept":25,"cut":false,"hidden":false,"merged":[[4,0,4,7],[21,1,21,2],[21,3,21,4],[24,1,24,2],[24,3,24,4],[8,0,10,0],[8,1,10,1],[8,2,8,3],[8,4,8,5],[8,6,8,7],[9,2,10,2],[9,3,10,3],[9,4,10,4],[9,5,10,5],[9,6,10,6],[9,7,10,7]]}
[null,null,null,null,null,null,null,"Приложение 1"]
[null,null,null,null,null,null,null,"Таблица 1.7."]
[]
[]
["Расчет (обоснование) расхода транспортируемой воды на нужды собственных подразделений (цехов)"]
[]
[]
[null,null,null,null,null,null,null,"(тыс.м3)"]
[" № п/п","Наименование показателя","2016 год",null,"2017 год",null,"2018 год"]
[null,null,"Предусмотрено в тарифе","Факт по данным организации","Предусмотрено в тарифе","Ожидаемое исполнение по данным организации","План организации","Принято ЛенРТК"]
[]
[1,2,3,4,5,6,7,8]
["1.","Расход транспортируемой воды на нужды собственных подразделений (цехов), всего:"]
[null,"в том числе:"]
["1.1."]
[" 1.2."]
[" 1.3."]
[]
[]
[]
["М.П."]
[null,"Должность руководителя, подпись",null,"Фамилия, имя, отчество"]
[]
[null,null,"                             "]
[null,"Должность исполнителя, подпись",null,"Фамилия, имя, отчество"]

{"sheet":"Реализация услуг ","index":10,"n_rows":62,"n_cols":11,"rows_kept":62,"cut":false,"hidden":false,"merged":[[58,3,58,5],[61,3,61,5],[6,6,8,6],[6,7,6,8],[6,9,8,9],[6,10,8,10],[7,7,8,7],[7,8,8,8],[2,1,2,10],[4,1,8,1],[4,2,8,2],[4,3,4,10],[5,3,5,5],[5,6,5,8],[5,9,5,10],[6,3,8,3],[6,4,8,4],[6,5,8,5]]}
[null,null,null,null,null,null,null,null,null,null,"Приложение 1"]
[null,null,null,null,null,null,null,null,null,null,"Таблица 1.8."]
[null,"Объёмы реализации услуги по потребителям "]
[]
[null,"Наименование потребителей","№ договора, дата","Объем отпуска (тыс.м3)"]
[null,null,null," факт 2016 год",null,null,"2017 год",null,null,"2018 год"]
[null,null,null,"предусмотрено в тарифе","Данные предприятия","Принято ЛенРТК","предусмотрено в тарифе","ожидаемое",null,"План предприятия","Принято ЛенРТК"]
[null,null,null,null,null,null,null,"Данные предприятия","Принято ЛенРТК"]
[]
[null,1,2,3,4,null,6,7,8,9,10]
[null,null,null,null,null,null,"Муниципальный район:  (наименование  МО 1)"]
[null,"Всего, в том числе:"]
[null,"Управляющие компании, ТСЖ и др. (по населению)"]
[null,"Потребитель 1"]
[null,"Потребитель 2"]
[null,"…"]
[null,"Население"]
[null,"Бюджетные организации "]
[null,"Потребитель 1"]
[null,"Потребитель 2"]
[null,"…"]
[null,"Другие водоснабжающие организации"]
[null,"Потребитель 1"]
[null,"Потребитель 2"]
[null,"…"]
[null,"Иные потребители"]
[null,"Потребитель 1"]
[null,"Потребитель 2"]
[null,"…"]
[null,null,null,null,null,null,"Муниципальный район:  (наименование  МО 2)"]
[null,"Всего, в том числе:"]
[null,"Управляющие компании, ТСЖ и др. (по населению)"]
[null,"Потребитель 1"]
[null,"Потребитель 2"]
[null,"…"]
[null,"Население"]
[null,"Бюджетные организации "]
[null,"Потребитель 1"]
[null,"Потребитель 2"]
[null,"…"]
[null,"Другие водоснабжающие организации"]
[null,"Потребитель 1"]
[null,"Потребитель 2"]
[null,"…"]
[null,"Иные потребители"]
[null,"Потребитель 1"]
[null,"Потребитель 2"]
[null,"…"]
[null,null,null,null,null,null,"Добавить МО"]
[null,"Всего по предприятию: в т.ч."]
[null,"Управляющие компании, ТСЖ и др. (по населению)"]
[null,"Население"]
[null,"Бюджетные организации "]
[null,"Другие водоснабжающие организации"]
[null,"Иные потребители"]
[]
[]
[]
[null,"Должность руководителя, подпись",null,"Фамилия, имя, отчество"]
[]
[null,null,"                             "]
[null,"Должность исполнителя, подпись",null,"Фамилия, имя, отчество"]

{"sheet":"План мероприятий 2016 год","index":11,"n_rows":51,"n_cols":15,"rows_kept":51,"cut":false,"hidden":false,"merged":[[3,11,3,12],[4,11,4,13],[7,11,7,12],[3,1,3,2],[4,1,4,3],[7,1,7,2],[16,1,20,1],[16,2,20,2],[16,3,20,3],[14,1,14,14],[18,8,19,9],[18,10,19,11],[16,4,20,4],[16,14,20,14],[18,5,20,5],[18,6,20,6],[16,5,17,6],[16,7,20,7],[16,8,17,11],[16,12,20,12],[16,13,20,13],[50,4,50,6],[22,1,22,14],[23,1,23,14],[27,1,27,4],[28,1,28,14],[32,1,32,4],[33,1,33,14],[37,1,37,4],[38,1,38,14],[42,1,42,4],[43,1,43,4],[47,4,47,6]]}
[null,null,null,null,null,null,null,null,null,null,null,null,null,null,"Приложение 2"]
[null,null,null,null,null,null,null,null,null,null,null,null,null,null,"Таблица 2.1"]
[]
[null,"Согласовано:",null,null,null,null,null,null,null,null,null,"Согласовано:*"]
[null,"Глава администрации МО",null,null,null,null,null,null,null,null,null,"Руководитель "]
[]
[]
[null,"ФИО",null,"подпись",null,null,null,null,null,null,null,"ФИО",null,"подпись"]
[]
[null,"\"           \"","                                    2017 год",null,null,null,null,null,null,null,"МП","\"           \"","                                    2016 год","2017 год"]
[]
[null,"МП"]
[]
[]
[null,"Выполнение  плана мероприятий по повышению эффективности деятельности и энергосбережению на 2016 год"]
[]
[null,"№ п/п","Наименование мероприятия","Инвентарный номер (адрес)","Стадии технологического процесса","Затраты на реализацию мероприятий (тыс.руб.без НДС)",null,"Источники финансирования","Объем работ в натуральных показателях",null,null,null,"Вид ремонта","Исполнитель работ","Примечание"]
[]
[null,null,null,null,null,"план","факт",null,"план",null,"факт"]
[]
[null,null,null,null,null,null,null,null,"Ед. изм.","Значение (количество)","Ед. изм.","Значение (количество)"]
[null,1,2,3,4,5,6,7,8,9,10,11,12,13,14]
[]
[null,"I раздел. Мероприятия по ремонту (капитальный ,текущий и др)"]
[null,"1.1","Мероприятие 1"]
[null,"1.2","Мероприятие 2"]
[null,"…","…"]
[null,"Итого по I разделу",null,null,null,null,null,"х","х","х","х","х","х","х","х"]
[null,"II раздел. Мероприятия по реконструкции "]
[null,"2.1","Мероприятие 1"]
[null,"2.2","Мероприятие 2"]
[null,"…","…"]
[null,"Итого по II разделу",null,null,null,null,null,"х","х","х","х","х","х","х","х"]
[null,"III раздел.  Иные мероприятия, направленные на совершенствование организации производства"]
[null,"3.1","Мероприятие 1"]
[null,"3.2","Мероприятие 2"]
[null,"…","…"]
[null,"Итого по III разделу",null,null,null,null,null,"х","х","х","х","х","х","х","х"]
[null,"IV раздел. Мероприятия по энергосбережению и повышению энергетической эффективности"]
[null,"4.1","Мероприятие 1"]
[null,"4.2","Мероприятие 2"]
[null,"…","…"]
[null,"Итого по IV разделу",null,null,null,null,null,"х","х","х","х","х","х","х","х"]
[]
[]
[null," *  Согласуется руководителем Арендодателя в случае, если данное требование предусмотрено договорами аренды"]
[]
[null,null,"Должность руководителя, подпись",null,"Фамилия, имя, отчество"]
[]
[null,null,null,"                             "]
[null,null,"Должность исполнителя, подпись",null,"Фамилия, имя, отчество"]

{"sheet":"План мероприятий 2017 год","index":12,"n_rows":50,"n_cols":15,"rows_kept":50,"cut":false,"hidden":false,"merged":[[2,1,2,2],[3,1,3,3],[6,1,6,2],[15,1,19,1],[15,2,19,2],[15,3,19,3],[2,11,2,12],[15,14,19,14],[6,11,6,12],[15,12,19,12],[17,6,19,6],[17,8,18,9],[17,10,18,11],[3,11,3,13],[15,5,16,6],[15,7,19,7],[17,5,19,5],[46,4,46,6],[49,4,49,6],[12,1,12,14],[32,1,32,14],[36,1,36,4],[37,1,37,14],[41,1,41,4],[42,1,42,4],[21,1,21,14],[22,1,22,14],[26,1,26,4],[27,1,27,14],[31,1,31,4],[15,13,19,13],[15,8,16,11],[15,4,19,4]]}
[null,null,null,null,null,null,null,null,null,null,null,null,null,null,"Приложение 2"]
[null,null,null,null,null,null,null,null,null,null,null,null,null,null,"Таблица 2.2"]
[null,"Согласовано:",null,null,null,null,null,null,null,null,null,"Согласовано:*"]
[null,"Глава администрации МО",null,null,null,null,null,null,null,null,null,"Руководитель "]
[]
[]
[null,"ФИО",null,"подпись",null,null,null,null,null,null,null,"ФИО",null,"подпись"]
[]
[null,"\"           \"","                                    2017 год",null,null,null,null,null,null,null,"МП","\"           \"","                               2016 год","2017 год"]
[]
[null,"МП"]
[]
[null,"Ожидаемое выполнение плана мероприятий по повышению эффективности деятельности и энергосбережению на 2017 год"]
[]
[]
[null,"№ п/п","Наименование мероприятия","Инвентарный номер (адрес)","Стадии технологического процесса","Затраты на реализацию мероприятий (тыс.руб.без НДС)",null,"Источники финансирования","Объем работ в натуральных показателях",null,null,null,"Вид ремонта","Исполнитель работ","Примечание"]
[]
[null,null,null,null,null,"план","факт",null,"план",null,"факт"]
[]
[null,null,null,null,null,null,null,null,"Ед. изм.","Значение (количество)","Ед. изм.","Значение (количество)"]
[null,1,2,3,4,5,6,7,8,9,10,11,12,13,14]
[]
[null,"I раздел. Мероприятия по ремонту (капитальный ,текущий и др)"]
[null,"1.1","Мероприятие 1"]
[null,"1.2","Мероприятие 2"]
[null,"…","…"]
[null,"Итого по I разделу",null,null,null,null,null,"х","х","х","х","х","х","х","х"]
[null,"II раздел. Мероприятия по реконструкции "]
[null,"2.1","Мероприятие 1"]
[null,"2.2","Мероприятие 2"]
[null,"…","…"]
[null,"Итого по II разделу",null,null,null,null,null,"х","х","х","х","х","х","х","х"]
[null,"III раздел.  Иные мероприятия, направленные на совершенствование организации производства"]
[null,"3.1","Мероприятие 1"]
[null,"3.2","Мероприятие 2"]
[null,"…","…"]
[null,"Итого по III разделу",null,null,null,null,null,"х","х","х","х","х","х","х","х"]
[null,"IV раздел. Мероприятия по энергосбережению и повышению энергетической эффективности"]
[null,"4.1","Мероприятие 1"]
[null,"4.2","Мероприятие 2"]
[null,"…","…"]
[null,"Итого по IV разделу",null,null,null,null,null,"х","х","х","х","х","х","х","х"]
[]
[]
[null," *  Согласуется руководителем Арендодателя в случае, если данное требование предусмотрено договорами аренды"]
[]
[null,null,"Должность руководителя, подпись",null,"Фамилия, имя, отчество"]
[]
[null,null,null,"                             "]
[null,null,"Должность исполнителя, подпись",null,"Фамилия, имя, отчество"]

{"sheet":"План мероприятий 2018 год","index":13,"n_rows":50,"n_cols":15,"rows_kept":50,"cut":false,"hidden":false,"merged":[[2,11,2,12],[3,11,3,13],[6,11,6,12],[15,8,16,11],[15,12,19,12],[15,13,19,13],[15,14,19,14],[46,4,46,6],[27,1,27,14],[31,1,31,4],[32,1,32,14],[17,5,19,5],[17,6,19,6],[17,8,18,9],[17,10,18,11],[21,1,21,14],[15,7,19,7],[49,4,49,6],[2,1,2,2],[3,1,3,3],[6,1,6,2],[15,1,19,1],[15,2,19,2],[15,3,19,3],[15,4,19,4],[15,5,16,6],[12,1,12,14],[36,1,36,4],[37,1,37,14],[41,1,41,4],[42,1,42,4],[22,1,22,14],[26,1,26,4]]}
[null,null,null,null,null,null,null,null,null,null,null,null,null,null,"Приложение 2"]
[null,null,null,null,null,null,null,null,null,null,null,null,null,null,"Таблица 2.3"]
[null,"Согласовано:",null,null,null,null,null,null,null,null,null,"Согласовано:*"]
[null,"Глава администрации МО",null,null,null,null,null,null,null,null,null,"Руководитель "]
[]
[]
[null,"ФИО",null,"подпись",null,null,null,null,null,null,null,"ФИО",null,"подпись"]
[]
[null,"\"           \"","                                    2017 год",null,null,null,null,null,null,null,"МП","\"           \"","                                     2016 год","2017 год"]
[]
[null,"МП"]
[]
[null,"План мероприятий по повышению эффективности деятельности и энергосбережению на 2018 год"]
[]
[]
[null,"№ п/п","Наименование мероприятия","Инвентарный номер (адрес)","Стадии технологического процесса","Затраты на реализацию мероприятий (тыс.руб.без НДС)",null,"Источники финансирования","Объем работ в натуральных показателях",null,null,null,"Вид ремонта","Исполнитель работ","Примечание"]
[]
[null,null,null,null,null,"план","факт",null,"план",null,"факт"]
[]
[null,null,null,null,null,null,null,null,"Ед. изм.","Значение (количество)","Ед. изм.","Значение (количество)"]
[null,1,2,3,4,5,6,7,8,9,10,11,12,13,14]
[]
[null,"I раздел. Мероприятия по ремонту (капитальный ,текущий и др)"]
[null,"1.1","Мероприятие 1"]
[null,"1.2","Мероприятие 2"]
[null,"…","…"]
[null,"Итого по I разделу",null,null,null,null,null,"х","х","х","х","х","х","х","х"]
[null,"II раздел. Мероприятия по реконструкции "]
[null,"2.1","Мероприятие 1"]
[null,"2.2","Мероприятие 2"]
[null,"…","…"]
[null,"Итого по II разделу",null,null,null,null,null,"х","х","х","х","х","х","х","х"]
[null,"III раздел.  Иные мероприятия, направленные на совершенствование организации производства"]
[null,"3.1","Мероприятие 1"]
[null,"3.2","Мероприятие 2"]
[null,"…","…"]
[null,"Итого по III разделу",null,null,null,null,null,"х","х","х","х","х","х","х","х"]
[null,"IV раздел. Мероприятия по энергосбережению и повышению энергетической эффективности"]
[null,"4.1","Мероприятие 1"]
[null,"4.2","Мероприятие 2"]
[null,"…","…"]
[null,"Итого по IV разделу",null,null,null,null,null,"х","х","х","х","х","х","х","х"]
[]
[]
[null," *  Согласуется руководителем Арендодателя в случае, если данное требование предусмотрено договорами аренды"]
[]
[null,null,"Должность руководителя, подпись",null,"Фамилия, имя, отчество"]
[]
[null,null,null,"                             "]
[null,null,"Должность исполнителя, подпись",null,"Фамилия, имя, отчество"]